bitfinex/quotes_SOLUSD_20240714
["timestamp","ask_amount","ask_price","bid_price","bid_amount"]
[1720920315931,6.2349,144.78,144.68,45.0]
[1720920316730,6.2349,144.78,144.69,1.38186188]
[1720920318831,7.4973678,144.83,144.72,22.54]
[1720920319043,7.4973678,144.83,144.73,87.19118474]
[1720920319249,7.4973678,144.83,144.74,1.38108468]
[1720920324662,0.8473678,144.83,144.76,20.81]
[1720920324966,0.8473678,144.83,144.77,88.92094966]
[1720920325536,0.8473678,144.83,144.77,109.73094966]
[1720920327771,0.8473678,144.83,144.8,43.35]
[1720920327975,0.8473678,144.83,144.81,21.38053657]
[1720920328185,0.8473678,144.83,144.81,87.19053657]
[1720920332243,0.8473678,144.83,144.81,21.38053657]
[1720920332469,0.8473678,144.83,144.81,1.38053657]
[1720920333573,0.8473678,144.83,144.82,1.38067018]
[1720920333764,0.8473678,144.83,144.8,1.38066998]
[1720920333944,0.8473678,144.83,144.8,46.38066998]
[1720920334665,0.8473678,144.83,144.82,11.24]
[1720920334960,0.8473678,144.83,144.82,12.62067144]
[1720920336752,0.8473678,144.83,144.8,45.0]
[1720920336753,0.8473678,144.83,144.81,1.38066889]
[1720920336961,0.8473678,144.83,144.82,11.24]
[1720920337575,0.8473678,144.83,144.79,11.24]
[1720920338167,0.8473678,144.83,144.81,11.24]
[1720920339973,0.8473678,144.83,144.8,11.24]
[1720920340482,0.8473678,144.83,144.82,11.24]
[1720920340769,0.8473678,144.83,144.82,56.24]
[1720920342052,0.8473678,144.83,144.82,46.38046454]
[1720920342254,0.8473678,144.83,144.82,12.62046454]
[1720920342461,0.8473678,144.83,144.82,1.38046454]
[1720920342957,0.8473678,144.83,144.82,1.3807074]
[1720920343157,0.8473678,144.83,144.78,20.0]
[1720920344372,0.8473678,144.83,144.79,45.0]
[1720920345390,0.8473678,144.83,144.8,1.38084696]
[1720920346659,0.8473678,144.83,144.79,45.0]
[1720920347259,0.8473678,144.83,144.8,1.38083267]
[1720920348660,0.8473678,144.83,144.79,65.81]
[1720920348979,0.8473678,144.83,144.79,45.0]
[1720920349665,0.8473678,144.83,144.8,1.38070354]
[1720920351980,0.8473678,144.83,144.8,64.67070354]
[1720920352177,0.8473678,144.83,144.81,65.81]
[1720920352375,0.8473678,144.83,144.82,1.38045252]
[1720920364693,0.8473678,144.83,144.82,12.62045252]
[1720920364898,0.8473678,144.83,144.82,57.62045252]
[1720920365076,0.8473678,144.83,144.82,89.67045252]
[1720920365276,0.8473678,144.83,144.82,109.67045252]
[1720920366675,0.8473678,144.83,144.82,108.27]
[1720920369382,0.8473678,144.83,144.82,109.65021905]
[1720920371014,21.6591,144.95,144.82,163.15901039]
[1720920371214,21.6591,144.95,144.88,20.81]
[1720920371379,21.6591,144.95,144.89,1.37978449]
[1720920371579,21.6591,144.95,144.9,1.37978449]
[1720920372098,21.6591,144.95,144.89,45.0]
[1720920372276,21.6591,144.95,144.88,65.81]
[1720920373406,21.6591,144.95,144.89,1.37978504]
[1720920373709,21.6591,144.95,144.9,1.37977554]
[1720920374415,21.6591,144.95,144.88,65.81]
[1720920378490,21.6591,144.95,144.89,1.37977691]
[1720920378809,21.6591,144.95,144.88,65.81]
[1720920380310,21.6591,144.95,144.89,1.37977719]
[1720920380492,21.6591,144.95,144.9,1.37977755]
[1720920381123,0.8473678,144.97,144.9,22.18977755]
[1720920381300,0.8473678,144.97,144.91,85.81]
[1720920381503,0.8473678,144.97,144.92,1.3794865]
[1720920381799,0.8473678,144.97,144.93,1.37948635]
[1720920386590,0.8473678,144.97,144.94,11.22]
[1720920386805,0.8473678,144.97,144.95,1.37958946]
[1720920387494,0.8473678,144.97,144.93,11.22]
[1720920387811,0.8473678,144.97,144.94,1.37958851]
[1720920388917,0.8473678,144.97,144.94,12.59958851]
[1720920389118,0.8473678,144.97,144.95,1.37958733]
[1720920390598,0.8473678,144.97,144.93,11.22]
[1720920390899,0.8473678,144.97,144.96,11.22]
[1720920392703,0.8473678,144.97,144.95,11.22]
[1720920393019,27.3639,144.96,144.85,8.63931776]
[1720920393235,11.22,144.95,144.9,11.22]
[1720920393405,11.22,144.95,144.91,1.37989786]
[1720920393600,27.3639,144.96,144.91,12.59989786]
[1720920393914,27.3639,144.96,144.91,11.22]
[1720920394219,27.3639,144.96,144.84,282.76716374]
[1720920394220,16.1439,144.96,144.9,11.22]
[1720920394418,27.3639,144.96,144.91,12.59983296]
[1720920394729,27.3639,144.96,144.92,12.59982824]
[1720920394924,27.3639,144.96,144.92,11.22]
[1720920395221,27.3639,144.96,144.93,1.37982916]
[1720920395414,27.3639,144.96,144.92,11.22]
[1720920395608,16.1439,144.96,144.93,1.37983015]
[1720920396607,16.1439,144.96,144.93,12.59983015]
[1720920396806,16.1439,144.96,144.92,11.22]
[1720920398518,11.22,144.95,144.86,20.0]
[1720920398732,11.22,144.95,144.9,11.22]
[1720920398923,11.22,144.95,144.91,1.37993756]
[1720920399520,27.3639,144.96,144.91,12.59993756]
[1720920399745,27.3639,144.96,144.91,11.22]
[1720920400218,27.3639,144.96,144.92,1.37993559]
[1720920400417,27.3639,144.96,144.93,1.37978273]
[1720920401116,27.3639,144.96,144.94,11.22]
[1720920401117,16.1439,144.96,144.94,11.22]
[1720920401435,0.8473678,144.97,144.95,12.59966438]
[1720920401639,0.8473678,144.97,144.96,12.59940374]
[1720920401832,0.8473678,144.97,144.93,1.3794077]
[1720920402019,0.8473678,144.97,144.94,11.22]
[1720920402221,0.8473678,144.97,144.95,12.59954261]
[1720920402427,0.8473678,144.97,144.96,1.37945776]
[1720920402820,0.8473678,144.97,144.94,11.22]
[1720920403538,0.8473678,144.97,144.93,12.59957814]
[1720920403752,0.8473678,144.97,144.94,11.22]
[1720920404336,0.8473678,144.97,144.93,12.59961518]
[1720920404529,0.8473678,144.97,144.93,1.37961518]
[1720920404729,0.8473678,144.97,144.91,21.37957532]
[1720920404934,0.8473678,144.97,144.92,45.0]
[1720920405435,0.8473678,144.97,144.93,1.37962475]
[1720920409223,0.8473678,144.97,144.87,43.26]
[1720920409528,0.8473678,144.97,144.88,1.3798241]
[1720920410527,0.8473678,144.97,144.89,20.81]
[1720920410733,0.8473678,144.97,144.9,46.37966181]
[1720920411521,0.8473678,144.97,144.9,67.18966181]
[1720920411848,0.8473678,144.97,144.9,88.26]
[1720920412021,0.8473678,144.97,144.91,1.37951442]
[1720920412640,0.8473678,144.97,144.91,21.37951442]
[1720920412828,0.8473678,144.97,144.92,45.0]
[1720920413132,0.8473678,144.97,144.93,1.37954957]
[1720920416429,0.8473678,144.97,144.94,1.37941061]
[1720920416932,0.8473678,144.97,144.92,65.81]
[1720920417131,0.8473678,144.97,144.93,1.37940052]
[1720920417327,0.8473678,144.97,144.93,64.63940052]
[1720920417523,0.8473678,144.97,144.94,45.0]
[1720920417726,0.8473678,144.97,144.95,21.37933937]
[1720920417937,0.8473678,144.97,144.96,46.37933987]
[1720920419831,0.8473678,144.97,144.95,20.0]
[1720920420024,0.8473678,144.97,144.94,20.0]
[1720920420225,0.8473678,144.97,144.95,1.37947322]
[1720920420423,0.8473678,144.97,144.96,1.3794344]
[1720920421342,0.8473678,144.97,144.92,20.0]
[1720920421552,0.8473678,144.97,144.88,30.86654269]
[1720920421862,0.8473678,144.97,144.89,1.37968258]
[1720920422030,0.8473678,144.97,144.9,1.37966466]
[1720920422554,0.8473678,144.97,144.91,20.81]
[1720920422764,0.8473678,144.97,144.92,1.37940172]
[1720920422925,0.8473678,144.97,144.93,22.18937917]
[1720920423131,0.8473678,144.97,144.94,45.0]
[1720920423345,0.8473678,144.97,144.92,45.0]
[1720920423540,0.8473678,144.97,144.93,40.81]
[1720920423746,0.8473678,144.97,144.94,46.37936829]
[1720920423946,0.8473678,144.97,144.94,45.0]
[1720920425142,0.8473678,144.97,144.94,65.81]
[1720920425344,0.8473678,144.97,144.95,21.37929498]
[1720920425542,0.8473678,144.97,144.96,46.37928917]
[1720920426135,0.8473678,144.97,144.96,67.18928917]
[1720920426341,0.8473678,144.97,144.96,87.18928917]
[1720920426655,0.8473678,144.97,144.96,143.23928917]
[1720920428352,0.8473678,144.97,144.96,98.39928917]
[1720920428561,0.8473678,144.97,144.96,109.60928917]
[1720920429265,0.8473678,144.97,144.96,21.37892233]
[1720920429439,0.8473678,144.97,144.96,12.58892233]
[1720920429771,0.8473678,144.97,144.96,21.37892233]
[1720920429935,0.8473678,144.97,144.96,11.21]
[1720920431061,0.8473678,144.97,144.96,56.21]
[1720920431262,0.8473678,144.97,144.96,77.02]
[1720920431840,0.8473678,144.97,144.96,88.23]
[1720920432145,0.8473678,144.97,144.96,76.21]
[1720920432961,0.8473678,144.97,144.96,97.02]
[1720920433345,0.8473678,144.97,144.96,76.21]
[1720920433953,0.8473678,144.97,144.96,109.6091612]
[1720920434335,0.8473678,144.97,144.96,108.23]
[1720920435961,0.8473678,144.97,144.96,141.86]
[1720920436465,0.8473678,144.97,144.96,143.23898587]
[1720920436662,15.6042,145.03,144.96,143.23898587]
[1720920436864,6.0216,145.04,145.02,11.21]
[1720920437180,6.0216,145.04,145.03,12.58875722]
[1720920437347,6.0216,145.04,145.03,11.21]
[1720920438359,15.6042,145.07,145.03,11.21]
[1720920438547,15.6042,145.07,145.04,11.21]
[1720920441166,15.6042,145.07,145.03,11.21]
[1720920441863,15.6042,145.07,145.04,1.37871565]
[1720920442078,2.52259706,145.11,145.05,22.1359]
[1720920442364,0.8473678,145.12,145.06,66.37804651]
[1720920442748,0.8473678,145.12,145.1,11.21]
[1720920443446,0.8473678,145.12,145.11,1.37801536]
[1720920443643,0.8473678,145.12,145.11,11.21]
[1720920444659,0.8473678,145.12,145.11,45.0]
[1720920445061,0.8473678,145.12,145.08,1.37788292]
[1720920445259,0.8473678,145.12,145.08,66.37788292]
[1720920445459,0.8473678,145.12,145.08,87.18788292]
[1720920446348,0.8473678,145.12,145.1,20.81]
[1720920446553,0.8473678,145.12,145.11,66.37773712]
[1720920446763,0.8473678,145.12,145.11,87.18773712]
[1720920447474,0.8473678,145.12,145.11,109.57773712]
[1720920447769,0.8473678,145.12,145.11,108.2]
[1720920451961,0.1754678,145.12,145.11,108.2]
[1720920452158,6.2692,145.21,145.11,130.59]
[1720920452358,6.2692,145.21,145.15,22.39]
[1720920452652,6.2692,145.21,145.16,66.37723221]
[1720920453244,6.2692,145.21,145.16,85.81]
[1720920453445,6.2692,145.21,145.17,1.37722416]
[1720920453669,6.2692,145.21,145.18,1.37723134]
[1720920454370,16.45176541,145.22,145.18,1.37723134]
[1720920454554,16.45176541,145.22,145.18,23.76723134]
[1720920454754,16.45176541,145.22,145.19,65.0]
[1720920454956,16.45176541,145.22,145.19,21.37716089]
[1720920455164,16.45176541,145.22,145.13,22.39]
[1720920455371,16.45176541,145.22,145.14,20.0]
[1720920455656,16.45176541,145.22,145.13,20.0]
[1720920455856,16.45176541,145.22,145.14,1.37760117]
[1720920456062,6.2692,145.21,145.15,1.37764009]
[1720920456261,6.2692,145.21,145.12,22.39]
[1720920456480,6.2692,145.21,145.13,1.37759064]
[1720920457173,6.2692,145.21,145.13,46.37759064]
[1720920457369,6.2692,145.21,145.14,20.0]
[1720920457582,6.2692,145.21,145.15,1.37751683]
[1720920458160,6.2692,145.21,145.14,20.0]
[1720920458468,6.2692,145.21,145.15,1.37771831]
[1720920458668,6.2692,145.21,145.12,1.37766644]
[1720920461081,6.2692,145.21,145.12,46.37766644]
[1720920461293,6.2692,145.21,145.13,20.0]
[1720920461480,6.2692,145.21,145.14,1.3776696]
[1720920461682,6.2692,145.21,145.15,1.37768283]
[1720920462775,6.2692,145.21,145.14,45.0]
[1720920462971,6.2692,145.21,145.15,1.37761204]
[1720920466267,6.2692,145.21,145.16,1.37760984]
[1720920466587,6.2692,145.21,145.2,11.18]
[1720920467582,16.45176541,145.22,145.2,11.18]
[1720920467784,16.45176541,145.22,145.21,12.55716222]
[1720920467991,16.45176541,145.22,145.21,11.18]
[1720920468706,16.45176541,145.22,145.19,1.37716222]
[1720920468991,16.45176541,145.22,145.18,22.36]
[1720920469201,16.45176541,145.22,145.19,1.3772591]
[1720920469386,16.45176541,145.22,145.19,46.3772591]
[1720920473001,16.45176541,145.22,145.19,1.3772591]
[1720920473384,16.45176541,145.22,145.18,22.36]
[1720920473796,16.45176541,145.22,145.19,1.37725432]
[1720920477104,16.45176541,145.22,145.18,22.36]
[1720920477273,16.45176541,145.22,145.19,1.37723344]
[1720920479490,16.45176541,145.22,145.19,21.37723344]
[1720920481101,16.45176541,145.22,145.19,20.0]
[1720920481477,16.45176541,145.22,145.2,1.37719497]
[1720920482080,16.45176541,145.22,145.2,1.37716915]
[1720920484202,16.45176541,145.22,145.21,1.37722788]
[1720920484411,0.04096541,145.22,145.2,22.36]
[1720920484617,0.04096541,145.22,145.21,1.37706729]
[1720920484802,0.04096541,145.22,145.2,22.36]
[1720920484975,0.04096541,145.22,145.21,1.3770044]
[1720920485181,0.04096541,145.22,145.2,22.36]
[1720920485381,0.04096541,145.22,145.21,1.37700616]
[1720920485991,0.04096541,145.22,145.21,66.37700616]
[1720920486916,0.04096541,145.22,145.21,87.18700616]
[1720920487279,0.8473678,145.26,145.21,85.81]
[1720920487510,0.8473678,145.26,145.25,22.36]
[1720920489900,0.8473678,145.26,145.25,87.36]
[1720920490692,0.8473678,145.26,145.25,120.8]
[1720920491706,6.0841,145.31,145.25,141.61]
[1720920491890,15.7846,145.32,145.3,11.16]
[1720920492090,15.7846,145.32,145.25,130.45]
[1720920492091,15.7846,145.32,145.31,11.16]
[1720920492590,15.7846,145.32,145.25,130.45]
[1720920492791,15.7846,145.32,145.31,11.16]
[1720920493704,6.0841,145.34,145.31,11.16]
[1720920494007,6.0841,145.34,145.25,130.45]
[1720920494209,6.0841,145.34,145.32,11.16]
[1720920494710,6.0841,145.34,145.33,11.16]
[1720920494908,6.0841,145.34,145.25,130.45]
[1720920495205,6.0841,145.34,145.33,11.16]
[1720920495515,6.0841,145.34,145.26,65.81]
[1720920495703,6.0841,145.34,145.33,11.16]
[1720920495888,6.0841,145.34,145.26,45.0]
[1720920496089,6.0841,145.34,145.32,11.16]
[1720920496786,6.0841,145.34,145.27,20.0]
[1720920496987,6.0841,145.34,145.32,11.16]
[1720920497309,6.0841,145.34,145.31,11.16]
[1720920497499,15.7846,145.33,145.23,31.07189204]
[1720920497709,15.7846,145.33,145.29,11.16]
[1720920498001,15.7846,145.33,145.25,44.64]
[1720920498311,11.16,145.32,145.27,11.16]
[1720920498787,15.7846,145.33,145.28,11.16]
[1720920498995,15.7846,145.33,145.26,1.37666151]
[1720920499204,15.7846,145.33,145.3,11.16]
[1720920499401,15.7846,145.33,145.32,11.16]
[1720920500206,15.7846,145.33,145.26,1.37638637]
[1720920500400,15.7846,145.33,145.3,11.16]
[1720920501591,15.7846,145.33,145.26,21.37653297]
[1720920501798,26.9446,145.33,145.24,1.37668835]
[1720920501992,11.16,145.32,145.28,11.16]
[1720920502206,26.9446,145.33,145.28,11.16]
[1720920502614,15.7846,145.33,145.24,1.37668835]
[1720920502807,25.7846,145.33,145.23,22.34]
[1720920503011,25.7846,145.33,145.2,10.26189204]
[1720920503012,15.9427,145.31,145.2,10.26189204]
[1720920504091,15.9427,145.31,145.24,22.34]
[1720920504295,15.9427,145.31,145.25,1.37658013]
[1720920504506,15.9427,145.31,145.25,21.37658013]
[1720920506211,15.9427,145.31,145.25,1.37658013]
[1720920506411,15.9427,145.31,145.2,10.26189204]
[1720920506615,15.9427,145.31,145.21,22.34]
[1720920507601,15.9427,145.31,145.22,1.37694608]
[1720920508204,15.9427,145.31,145.22,21.37694608]
[1720920509616,15.9427,145.31,145.22,20.0]
[1720920510197,15.9427,145.31,145.23,1.37693033]
[1720920510399,15.9427,145.31,145.22,20.0]
[1720920510604,15.9427,145.31,145.23,1.37693739]
[1720920510813,15.9427,145.31,145.24,1.37672562]
[1720920515000,15.9427,145.31,145.24,21.37672562]
[1720920516118,15.9427,145.31,145.25,22.34]
[1720920516417,15.9427,145.31,145.26,1.37648612]
[1720920516617,15.9427,145.31,145.27,1.37649295]
[1720920517715,15.9427,145.31,145.28,1.37654971]
[1720920518021,15.9427,145.31,145.26,1.37645536]
[1720920518202,15.9427,145.31,145.27,1.37649287]
[1720920519201,15.9427,145.31,145.24,20.0]
[1720920519502,15.9427,145.31,145.25,68.71654038]
[1720920519909,15.9427,145.31,145.26,20.0]
[1720920520114,15.9427,145.31,145.27,1.37643468]
[1720920522498,15.9427,145.31,145.3,11.17]
[1720920527225,15.9427,145.31,145.27,1.37640066]
[1720920527426,15.9427,145.31,145.26,20.0]
[1720920527630,15.9427,145.31,145.27,11.17]
[1720920527942,27.1127,145.31,145.22,10.26189204]
[1720920528125,27.1127,145.31,145.27,11.17]
[1720920528442,2.61233999,145.37,145.17,22.78735946]
[1720920528443,22.817,145.29,145.17,22.78735946]
[1720920528617,33.987,145.29,145.24,11.17]
[1720920529020,33.987,145.29,145.18,54.94189204]
[1720920529021,11.17,145.28,145.18,54.94189204]
[1720920529332,11.17,145.28,145.23,11.17]
[1720920529836,11.17,145.28,145.18,54.94189204]
[1720920529837,11.17,145.28,145.24,11.17]
[1720920530016,11.17,145.28,145.19,1.37707993]
[1720920530209,11.17,145.28,145.24,11.17]
[1720920530519,22.817,145.29,145.19,11.63897197]
[1720920530719,25.45112684,145.29,145.19,33.98897197]
[1720920530922,25.45112684,145.29,145.2,20.0]
[1720920531126,25.45112684,145.29,145.21,1.37711885]
[1720920531337,22.817,145.29,145.21,1.37711885]
[1720920532013,22.817,145.29,145.22,32.61189204]
[1720920532311,22.817,145.29,145.23,21.37681685]
[1720920532628,22.817,145.29,145.24,1.37671135]
[1720920532814,22.817,145.29,145.23,20.0]
[1720920534727,22.817,145.29,145.24,1.37671258]
[1720920536532,22.817,145.29,145.23,20.0]
[1720920536725,22.817,145.29,145.24,1.37666552]
[1720920536928,22.817,145.29,145.23,21.37678967]
[1720920537323,22.817,145.29,145.23,20.0]
[1720920537921,22.817,145.29,145.22,21.37702343]
[1720920539025,22.817,145.29,145.22,20.0]
[1720920539433,22.817,145.29,145.23,1.37682967]
[1720920539625,22.817,145.29,145.24,1.37677446]
[1720920540132,22.817,145.29,145.23,22.35]
[1720920540629,22.817,145.29,145.24,20.0]
[1720920541022,22.817,145.29,145.11,22.817]
[1720920541023,32.6524,145.25,145.11,22.817]
[1720920541238,32.6524,145.25,145.12,22.35]
[1720920542042,6.5556,145.28,145.14,6.6411]
[1720920542220,6.5556,145.28,145.2,22.35]
[1720920542423,6.5556,145.28,145.21,1.37687189]
[1720920543034,6.5556,145.28,145.21,21.37687189]
[1720920545123,6.5556,145.28,145.21,20.0]
[1720920545323,6.5556,145.28,145.22,1.37693763]
[1720920545539,6.5556,145.28,145.21,20.0]
[1720920545740,25.19935563,145.34,145.21,20.0]
[1720920545941,22.6524,145.34,145.25,22.35]
[1720920546148,22.6524,145.34,145.26,21.37626323]
[1720920546345,22.6524,145.34,145.27,1.37624462]
[1720920546537,22.6524,145.34,145.28,22.35]
[1720920546732,22.6524,145.34,145.29,1.37619545]
[1720920546936,22.6524,145.34,145.3,1.37624516]
[1720920547529,0.8473678,145.4,145.3,1.37624516]
[1720920547741,0.8473678,145.4,145.31,44.53624284]
[1720920547948,0.8473678,145.4,145.32,45.0]
[1720920548251,0.8473678,145.4,145.33,1.37578919]
[1720920550051,0.8473678,145.4,145.32,45.0]
[1720920550236,0.8473678,145.4,145.31,20.81]
[1720920550237,10.8473678,145.4,145.31,1.37576967]
[1720920550425,10.8473678,145.4,145.27,1.37619003]
[1720920550749,10.8473678,145.4,145.27,1.37619048]
[1720920550750,10.0,145.38,145.27,1.37619048]
[1720920550931,10.0,145.38,145.24,1.37647279]
[1720920551130,16.0968,145.37,145.24,1.37647279]
[1720920551327,10.0,145.36,145.24,1.37647279]
[1720920551547,6.5556,145.35,145.24,1.37647279]
[1720920552264,6.5556,145.35,145.22,31.7411]
[1720920552265,16.0968,145.37,145.26,20.81]
[1720920552549,16.0968,145.37,145.28,20.81]
[1720920552843,16.0968,145.37,145.29,1.37595961]
[1720920553044,16.0968,145.37,145.3,1.37596237]
[1720920554949,16.0968,145.37,145.31,1.37620432]
[1720920555148,16.0968,145.37,145.29,1.3761379]
[1720920555355,16.0968,145.37,145.3,1.37617568]
[1720920556144,16.0968,145.37,145.24,25.1]
[1720920556376,16.0968,145.37,145.25,1.37638678]
[1720920557554,16.0968,145.37,145.26,20.81]
[1720920557755,16.0968,145.37,145.27,66.37617226]
[1720920559231,16.0968,145.37,145.27,21.37617226]
[1720920559467,16.0968,145.37,145.28,1.37635945]
[1720920561035,6.5556,145.39,145.28,102.34815945]
[1720920562762,6.5556,145.39,145.3,20.81]
[1720920562953,6.5556,145.39,145.31,66.37584631]
[1720920563659,6.5556,145.39,145.31,21.37584631]
[1720920563885,6.5556,145.39,145.3,21.37598864]
[1720920564670,6.5556,145.39,145.3,20.0]
[1720920565154,6.5556,145.39,145.3,21.37613357]
[1720920565356,6.5556,145.39,145.3,1.37613357]
[1720920566358,6.5556,145.39,145.29,6.6176]
[1720920567163,6.5556,145.39,145.3,1.37611713]
[1720920568659,0.8473678,145.4,145.3,1.37611713]
[1720920569544,0.8473678,145.4,145.3,46.37611713]
[1720920570468,0.8473678,145.4,145.3,45.0]
[1720920570873,0.8473678,145.4,145.31,1.37609352]
[1720920571452,0.8473678,145.4,145.3,1.37603408]
[1720920571954,0.8473678,145.4,145.29,6.6176]
[1720920572157,45.8473678,145.4,145.29,6.6176]
[1720920572375,45.8473678,145.4,145.28,15.1618]
[1720920573348,45.8473678,145.4,145.29,1.37628055]
[1720920573666,45.8473678,145.4,145.3,1.3762587]
[1720920574255,48.4781117,145.4,145.3,1.3762587]
[1720920574555,48.4781117,145.4,145.29,1.37624465]
[1720920574759,48.4781117,145.4,145.3,1.37626058]
[1720920575674,48.4781117,145.4,145.29,1.37622839]
[1720920575869,48.4781117,145.4,145.3,1.3762305]
[1720920576284,10.0,145.38,145.28,1.37623048]
[1720920576479,10.0,145.38,145.26,21.37646779]
[1720920576651,10.0,145.38,145.27,1.37647062]
[1720920577472,45.0,145.37,145.27,1.37647062]
[1720920577681,45.0,145.37,145.26,1.37651737]
[1720920577983,45.0,145.37,145.25,21.7794]
[1720920578186,16.3489,145.36,145.25,15.1618]
[1720920578384,16.3489,145.36,145.26,1.37653734]
[1720920578693,26.3489,145.36,145.26,1.37653985]
[1720920579482,26.3489,145.36,145.25,16.53842985]
[1720920579789,6.4887,145.34,145.25,1.37662985]
[1720920580470,6.4887,145.34,145.23,22.32]
[1720920580471,6.4887,145.34,145.24,1.37670685]
[1720920581985,16.4887,145.34,145.23,22.32]
[1720920582185,45.0,145.33,145.23,22.32]
[1720920582688,45.0,145.33,145.24,1.37686381]
[1720920583069,16.4887,145.34,145.24,1.37686381]
[1720920583269,6.4887,145.34,145.23,22.32]
[1720920585071,6.4887,145.34,145.24,1.3767053]
[1720920585274,10.0,145.32,145.22,15.4298]
[1720920585674,10.0,145.32,145.2,22.32]
[1720920585878,45.0,145.31,145.2,22.32]
[1720920586086,10.0,145.3,145.2,22.32]
[1720920586288,10.0,145.3,145.18,15.4298]
[1720920586289,32.32,145.3,145.18,15.4298]
[1720920586496,6.4887,145.29,145.18,15.4298]
[1720920587674,26.3489,145.28,145.18,16.80706936]
[1720920587889,26.3489,145.28,145.18,15.4298]
[1720920588073,6.4887,145.29,145.19,1.37743852]
[1720920588974,10.0,145.26,145.14,21.5315]
[1720920589694,22.32,145.25,145.14,15.4298]
[1720920589886,16.3489,145.22,145.11,28.4217]
[1720920591309,26.3489,145.22,145.11,6.1017]
[1720920591600,26.3489,145.22,145.1,15.4298]
[1720920591784,48.6689,145.22,145.1,15.4298]
[1720920591992,48.6689,145.22,145.07,6.1017]
[1720920591993,10.0,145.2,145.07,6.1017]
[1720920592214,10.0,145.2,145.08,1.37814562]
[1720920592372,38.6689,145.22,145.08,1.37814562]
[1720920592572,38.6689,145.22,145.07,49.1317]
[1720920592573,16.3489,145.22,145.1,22.32]
[1720920592982,26.3489,145.22,145.11,1.37778216]
[1720920593183,10.0,145.2,145.11,1.37778216]
[1720920593398,10.0,145.2,145.11,1.37809347]
[1720920593601,48.6689,145.22,145.09,21.37811744]
[1720920593799,45.0,145.21,145.09,21.37811744]
[1720920594207,10.0,145.2,145.09,21.37811744]
[1720920594419,45.0,145.21,145.09,21.37811744]
[1720920594598,10.0,145.2,145.09,21.37811744]
[1720920595210,10.0,145.2,145.08,22.32]
[1720920595410,10.0,145.18,145.08,23.69821626]
[1720920595611,10.0,145.18,145.05,15.4298]
[1720920595791,6.4887,145.19,145.05,15.4298]
[1720920596304,10.0,145.18,145.05,15.4298]
[1720920596713,16.3489,145.17,145.05,15.4298]
[1720920596925,16.3489,145.17,145.06,1.37827109]
[1720920597216,10.0,145.16,145.04,22.32]
[1720920597385,6.4887,145.15,145.04,23.69862862]
[1720920599587,6.4887,145.15,145.03,6.1017]
[1720920599588,55.0,145.14,145.01,37.7498]
[1720920599805,55.0,145.14,145.02,20.0]
[1720920600689,55.0,145.14,145.03,1.37865955]
[1720920600885,22.32,145.18,145.02,20.0]
[1720920600886,15.4053,145.21,145.1,22.32]
[1720920601128,15.4053,145.21,145.16,22.32]
[1720920602704,15.4053,145.21,145.15,22.32]
[1720920604190,15.4053,145.21,145.17,22.32]
[1720920604628,15.4053,145.21,145.17,25.15]
[1720920605902,15.4053,145.21,145.14,25.15]
[1720920609195,6.3301,145.2,145.14,25.15]
[1720920609395,16.3301,145.2,145.11,25.15]
[1720920609595,45.0,145.19,145.11,25.15]
[1720920609793,16.3301,145.2,145.11,26.52810196]
[1720920610820,16.3301,145.2,145.12,1.37807293]
[1720920611195,16.3301,145.2,145.11,26.52799369]
[1720920612426,16.3301,145.2,145.11,25.15]
[1720920612632,16.3301,145.2,145.12,1.37802812]
[1720920613228,6.3301,145.2,145.12,1.37802812]
[1720920613921,6.3301,145.2,145.11,25.15]
[1720920614328,6.3301,145.2,145.12,1.37788321]
[1720920614532,15.4053,145.21,145.12,85.71]
[1720920614833,21.7354,145.24,145.14,36.8381]
[1720920615032,21.7354,145.24,145.15,66.37744266]
[1720920615391,21.7354,145.24,145.15,87.08744266]